bitfinex/quotes_ETHUSD_20241101
["timestamp","ask_amount","ask_price","bid_price","bid_amount"]
[1730443455920,0.7971,2507.6,2507.2,0.12477028]
[1730443456093,3.98806,2507.5,2507.2,0.12477028]
[1730443456415,3.98806,2507.5,2507.1,0.7853]
[1730443456616,3.98823,2507.4,2507.1,0.91007028]
[1730443456816,3.98823,2507.4,2507.1,0.7853]
[1730443457002,3.98823,2507.4,2507.1,0.002]
[1730443457205,3.98806,2507.5,2507.1,0.002]
[1730443457206,3.98835,2507.3,2507.1,0.002]
[1730443457922,7.34103409,2507.5,2506.9,1.76890241]
[1730443458101,3.98811,2507.5,2507.0,3.9888]
[1730443459429,3.98811,2507.5,2506.9,6.33370319]
[1730443459724,3.98811,2507.5,2507.0,3.98882]
[1730443459919,3.0,2507.5,2506.9,5.50107106]
[1730443460124,6.98805,2507.5,2506.9,9.48994106]
[1730443460422,3.0,2507.5,2507.1,3.98864]
[1730443460740,3.0,2507.5,2507.0,4.93781411]
[1730443461084,3.7971,2507.6,2507.0,0.94899411]
[1730443461289,3.98812,2507.5,2507.0,0.94899411]
[1730443462830,3.98812,2507.5,2507.0,4.93771411]
[1730443463694,3.98812,2507.5,2507.1,0.04129487]
[1730443464298,7.97625,2507.5,2507.1,0.04129487]
[1730443464599,7.97654,2507.4,2507.1,0.04129487]
[1730443464921,3.9885,2507.3,2506.9,0.8115]
[1730443465231,3.9885,2507.3,2507.0,0.04129817]
[1730443465526,3.98819,2507.4,2507.0,0.04129817]
[1730443466106,7.97647,2507.4,2507.0,0.04129817]
[1730443466629,5.48946195,2507.4,2507.0,0.04129817]
[1730443467537,22.3715,2513.7,2507.3,4.75654]
[1730443467538,4.76337,2508.1,2507.3,4.75654]
[1730443467706,4.76328,2508.1,2507.4,3.98808]
[1730443468032,0.7762,2508.1,2507.7,0.7683]
[1730443468240,4.76329,2508.1,2507.7,0.7683]
[1730443468540,1.50127195,2508.0,2507.8,0.04137173]
[1730443468707,5.48851195,2508.0,2507.8,0.04137173]
[1730443468910,1.50127195,2508.0,2507.6,3.98786]
[1730443469093,1.50127195,2508.0,2507.7,0.04126432]
[1730443469297,4.76329,2508.1,2507.7,0.04126432]
[1730443472142,8.7505,2508.1,2507.7,0.04126432]
[1730443472836,4.76329,2508.1,2507.7,0.04126432]
[1730443473132,8.7505,2508.1,2507.7,0.04126432]
[1730443473347,4.76329,2508.1,2507.7,0.04126432]
[1730443474043,3.98729,2508.0,2507.7,0.04126432]
[1730443474243,1.951216,2508.1,2507.7,0.04126432]
[1730443474547,3.98748,2507.9,2507.8,0.0396308]
[1730443474705,3.98725,2508.0,2507.8,0.0396308]
[1730443474905,3.98725,2508.0,2507.5,0.89305375]
[1730443475108,7.97459,2508.0,2507.6,0.03964456]
[1730443475335,3.98725,2508.0,2507.6,0.03964456]
[1730443475798,3.35260038,2508.6,2508.1,0.8039]
[1730443475999,3.83092741,2509.0,2508.6,4.79018]
[1730443476202,3.98567,2509.0,2508.6,0.8039]
[1730443476438,3.98567,2509.0,2508.7,0.03961892]
[1730443476946,3.98551,2509.1,2508.7,0.03961892]
[1730443479144,7.75643,2509.2,2508.7,0.03961892]
[1730443480742,3.98549,2509.1,2508.7,0.03961892]
[1730443481040,3.67849,2509.1,2508.7,0.03961892]
[1730443482053,3.7711,2509.2,2508.7,0.85801805]
[1730443482206,3.0,2509.2,2508.7,0.85801805]
[1730443482406,3.98525,2509.3,2508.7,0.85801805]
[1730443482646,3.98525,2509.3,2508.8,0.12469574]
[1730443482943,3.98525,2509.3,2508.9,0.03938743]
[1730443483441,6.98503,2509.4,2508.8,7.97181]
[1730443483645,6.98503,2509.4,2509.0,0.03938413]
[1730443483844,6.98511,2509.4,2509.0,0.827]
[1730443484006,6.98511,2509.4,2509.1,0.03938083]
[1730443484841,3.0,2509.4,2509.1,0.03938083]
[1730443485073,6.98504,2509.4,2509.1,0.03938083]
[1730443485583,3.98485,2509.5,2509.1,0.03938083]
[1730443485875,3.98485,2509.5,2509.1,0.612476]
[1730443489359,6.98463,2509.7,2509.1,0.612476]
[1730443489539,6.98475,2509.6,2509.1,0.612476]
[1730443490043,3.9849,2509.5,2509.1,0.612476]
[1730443491373,7.96984,2509.5,2509.1,0.612476]
[1730443491560,3.9849,2509.5,2509.1,0.612476]
[1730443493372,3.9849,2509.5,2509.2,0.5425026]
[1730443493701,3.9849,2509.5,2509.3,0.03736011]
[1730443493866,3.9849,2509.5,2509.2,0.5425026]
[1730443494194,7.96984,2509.5,2509.3,0.03736011]
[1730443494495,7.96984,2509.5,2509.0,4.81255]
[1730443494784,3.9849,2509.5,2509.1,0.03736672]
[1730443495351,3.0,2509.6,2509.1,0.03736672]
[1730443495694,6.98472,2509.6,2509.1,0.03736672]
[1730443496955,3.98499,2509.5,2509.1,0.03736672]
[1730443497868,6.98472,2509.6,2509.1,0.03736672]
[1730443498190,3.98502,2509.4,2509.1,0.03736672]
[1730443498392,3.98519,2509.3,2509.1,0.03736672]
[1730443498582,3.98533,2509.2,2509.1,0.03736672]
[1730443498788,3.98533,2509.2,2509.0,0.827]
[1730443500090,4.80382,2509.4,2509.0,0.827]
[1730443500292,3.98518,2509.3,2509.0,0.827]
[1730443500795,3.98533,2509.2,2509.0,0.827]
[1730443500964,8.78894,2509.4,2509.0,0.827]
[1730443501307,3.98521,2509.3,2509.0,0.827]
[1730443501860,0.8188,2509.4,2509.0,0.827]
[1730443502197,6.98486,2509.5,2509.0,4.81262]
[1730443502506,3.98505,2509.4,2509.0,0.827]
[1730443502811,3.98518,2509.3,2509.0,0.827]
[1730443503294,3.98505,2509.4,2509.0,0.827]
[1730443504291,3.98505,2509.4,2509.0,4.81264]
[1730443504601,3.98505,2509.4,2509.0,0.827]
[1730443505917,3.9849,2509.5,2509.0,0.827]
[1730443506213,3.9849,2509.5,2509.0,4.81263]
[1730443506560,3.98502,2509.4,2509.0,0.827]
[1730443507199,3.98489,2509.5,2509.0,4.81262]
[1730443507606,3.0,2509.7,2509.2,3.98532]
[1730443507816,6.98464,2509.7,2509.3,0.7768]
[1730443507997,3.98473,2509.6,2509.3,0.7768]
[1730443508769,3.98486,2509.5,2509.3,0.7768]
[1730443509012,3.98473,2509.6,2509.3,0.7768]
[1730443509176,3.98497,2509.5,2509.1,0.7612]
[1730443510479,3.98501,2509.4,2509.1,0.7612]
[1730443510712,5.48337831,2509.6,2509.1,0.7612]
[1730443510888,3.98488,2509.5,2509.1,0.7612]
[1730443511215,3.98473,2509.6,2509.1,0.7612]
[1730443511511,7.96957,2509.6,2509.1,0.96068567]
[1730443512498,3.98473,2509.6,2509.2,0.19948567]
[1730443512703,3.98485,2509.5,2509.1,0.7612]
[1730443512906,3.98473,2509.6,2509.2,0.1994769]
[1730443513090,3.98473,2509.6,2509.1,6.24533831]
[1730443513290,3.98473,2509.6,2509.2,0.19947564]
[1730443513492,3.98473,2509.6,2509.3,0.19947564]
[1730443513687,3.98473,2509.6,2509.1,7.26844214]
[1730443513893,3.98473,2509.6,2509.2,0.19947528]
[1730443514121,3.98473,2509.6,2509.3,0.19947528]
[1730443514307,3.98473,2509.6,2509.1,7.26834214]
[1730443514616,3.98473,2509.6,2509.2,0.19947386]
[1730443514815,3.98473,2509.6,2509.3,0.19947386]
[1730443515004,3.98473,2509.6,2509.1,7.26834214]
[1730443515204,3.98473,2509.6,2509.2,0.1994761]
[1730443515520,3.98473,2509.6,2509.3,0.1994761]
[1730443515723,3.98473,2509.6,2509.1,5.76969383]
[1730443515883,3.98473,2509.6,2509.2,0.19947473]
[1730443516208,3.98473,2509.6,2509.1,5.76969383]
[1730443516525,3.98473,2509.6,2509.2,0.19947247]
[1730443516687,3.98473,2509.6,2509.3,0.19947247]
[1730443516882,7.96956,2509.6,2509.4,0.19947247]
[1730443517080,7.96956,2509.6,2509.1,5.76969383]
[1730443517319,7.96956,2509.6,2509.2,0.1994737]
[1730443517622,3.98459,2509.7,2509.4,0.8265]
[1730443517930,3.98459,2509.7,2509.5,0.1994737]
[1730443518078,3.98459,2509.7,2509.4,0.8265]
[1730443518282,3.98459,2509.7,2509.5,0.19946585]
[1730443518476,3.98459,2509.7,2509.4,0.8265]
[1730443518683,7.96921,2509.7,2509.5,0.19946504]
[1730443518913,7.96921,2509.7,2509.4,0.8265]
[1730443519123,7.96921,2509.7,2509.5,0.1994656]
[1730443519305,3.98459,2509.7,2509.4,0.8265]
[1730443519511,3.98459,2509.7,2509.5,0.19946555]
[1730443519823,7.96922,2509.7,2509.6,0.19946554]
[1730443520005,3.98459,2509.7,2509.6,0.19946554]
[1730443523026,3.98459,2509.7,2509.6,0.199474]
[1730443525297,6.98459,2509.7,2509.6,0.199474]
[1730443525700,6.98453,2509.7,2509.6,0.199474]
[1730443526010,3.0,2509.6,2509.2,4.76665091]
[1730443526218,3.0,2509.6,2509.3,0.29862618]
[1730443526539,3.0,2509.6,2509.2,5.92266262]
[1730443526706,3.0,2509.6,2509.2,5.92267006]
[1730443527033,3.0,2509.6,2509.2,5.89238973]
[1730443527235,3.0,2509.7,2509.3,0.29863896]
[1730443527535,3.0,2509.7,2509.4,0.29863896]
[1730443527774,3.0,2509.7,2509.3,0.0302834]
[1730443528110,6.9846,2509.7,2509.3,0.0302834]
[1730443528401,6.9846,2509.7,2509.4,0.2986961]
[1730443528616,3.0,2509.9,2509.4,3.98493]
[1730443528815,0.8028,2510.1,2509.4,3.98493]
[1730443528816,6.98395,2510.1,2509.7,1.49864831]
[1730443529000,3.98378,2510.2,2509.7,6.24753831]
[1730443529429,3.98378,2510.2,2509.7,2.26304831]
[1730443529628,7.96763,2510.2,2509.7,2.26304831]
[1730443529838,3.98392,2510.1,2509.7,2.26304831]
[1730443530239,3.98392,2510.1,2509.7,0.7644]
[1730443530803,3.0,2510.1,2509.7,0.7644]
[1730443531417,6.98391,2510.1,2509.7,0.7644]
[1730443531842,3.98407,2510.0,2509.7,0.7644]
[1730443532408,3.0,2510.1,2509.7,0.7644]
[1730443533009,6.98392,2510.1,2509.7,0.7644]
[1730443535414,3.0,2510.1,2509.8,0.76]
[1730443535927,3.0,2510.1,2509.9,0.19942719]
[1730443536223,3.0,2510.1,2510.0,0.19942719]
[1730443536420,3.0,2510.1,2510.0,0.19942884]
[1730443536620,3.0,2510.1,2510.0,0.19942792]
[1730443537339,3.0,2510.1,2509.8,0.76]
[1730443537524,3.0,2510.1,2509.9,0.19942977]
[1730443537849,3.0,2510.1,2509.8,0.76]
[1730443538012,3.0,2510.1,2509.9,0.19942867]
[1730443538343,3.98392,2510.1,2509.8,0.76]
[1730443538555,6.98374,2510.2,2509.9,0.19943011]
[1730443538713,6.98374,2510.2,2509.8,0.76]
[1730443538913,6.98376,2510.2,2509.9,0.19942695]
[1730443539105,6.98376,2510.2,2509.8,0.76]
[1730443539310,3.0,2510.3,2509.9,4.1835283]
[1730443539550,3.98333,2510.5,2510.0,0.99731575]
[1730443539749,3.98367,2510.3,2510.1,0.19941609]
[1730443540048,3.98367,2510.3,2510.0,0.7979]
[1730443540243,3.98367,2510.3,2510.1,0.19941912]
[1730443540558,3.98367,2510.3,2510.0,0.7979]
[1730443540870,3.98374,2510.2,2510.0,0.7979]
[1730443541070,3.98374,2510.2,2510.1,0.19941874]
[1730443541956,4.79352,2510.4,2510.1,0.19941874]
[1730443542106,3.98346,2510.4,2510.0,0.7979]
[1730443542955,3.98336,2510.5,2510.1,0.1994109]
[1730443543118,7.96672,2510.5,2510.0,0.7979]
[1730443543320,3.98344,2510.4,2510.1,0.19941051]
[1730443543515,7.96674,2510.5,2510.0,0.7979]
[1730443543745,7.96674,2510.5,2510.1,0.19940951]
[1730443543927,3.98336,2510.5,2510.0,0.7979]
[1730443544136,3.98336,2510.5,2510.1,4.18330036]
[1730443544330,3.98336,2510.5,2510.0,5.41797543]
[1730443544533,3.98336,2510.5,2510.1,0.19940403]
[1730443544855,3.98336,2510.5,2510.0,5.41797543]
[1730443545043,3.98336,2510.5,2510.1,0.19940505]
[1730443545251,3.98336,2510.5,2510.0,5.41797543]
[1730443545565,3.98336,2510.5,2510.1,1.09007537]
[1730443546123,3.98336,2510.5,2510.2,0.7561]
[1730443548371,3.98311,2510.6,2510.2,0.7561]
[1730443548886,3.98327,2510.5,2510.2,0.7561]
[1730443549453,6.98306,2510.7,2510.2,4.81939409]
[1730443549652,6.9828,2510.8,2510.3,3.98355]
[1730443550221,6.9828,2510.8,2510.4,0.7786]
[1730443550429,3.9828,2510.8,2510.4,0.7786]
[1730443552367,3.98295,2510.7,2510.4,0.7786]
[1730443554950,3.98274,2510.9,2510.4,5.3202138]
[1730443555272,3.98274,2510.9,2510.4,1.3368738]
[1730443555476,3.98279,2510.8,2510.4,0.7786]
[1730443556178,3.98274,2510.9,2510.4,0.7786]
[1730443556470,3.98279,2510.8,2510.4,0.7786]
[1730443557043,3.98274,2510.9,2510.4,0.7786]
[1730443557353,3.98272,2510.9,2510.5,0.49615575]
[1730443557875,3.98272,2510.9,2510.6,0.7597]
[1730443559142,7.96545,2510.9,2510.6,0.7597]
[1730443559356,3.98272,2510.9,2510.6,0.7597]
[1730443560195,7.96544,2510.9,2510.6,0.7597]
[1730443560359,3.98272,2510.9,2510.6,0.7597]
[1730443560980,3.98279,2510.8,2510.6,0.7597]
[1730443564166,3.98272,2510.9,2510.6,0.7597]
[1730443564805,7.96546,2510.9,2510.6,0.7597]
[1730443565475,3.98272,2510.9,2510.6,0.7597]
[1730443565679,3.98279,2510.8,2510.6,0.7597]
[1730443567167,7.96546,2510.9,2510.7,0.12460099]
[1730443567373,7.96546,2510.9,2510.6,0.7597]
[1730443567687,7.96546,2510.9,2510.7,0.12459974]
[1730443567888,3.98272,2510.9,2510.6,0.7597]
[1730443568090,7.96548,2510.9,2510.6,0.7597]
[1730443568294,3.98272,2510.9,2510.6,0.7597]
[1730443568478,3.98295,2510.7,2510.4,0.7993]
[1730443568673,3.98295,2510.7,2510.5,0.12461097]
[1730443568873,3.98295,2510.7,2510.6,0.12461097]
[1730443569787,3.98257,2511.0,2510.6,0.12461097]
[1730443570095,3.98257,2511.0,2510.8,0.7993]
[1730443570296,7.96453,2511.2,2510.8,0.7993]
[1730443570505,3.98202,2511.3,2510.8,0.7993]
[1730443570722,3.98202,2511.3,2510.9,0.1245929]
[1730443570919,3.98202,2511.3,2510.8,5.26032]
[1730443571072,3.98195,2511.4,2510.9,0.12458854]
[1730443571443,3.98217,2511.2,2511.0,0.12458621]
[1730443571606,3.98217,2511.2,2510.9,0.19933657]
[1730443571791,3.98217,2511.2,2510.8,1.27754]
[1730443571792,3.98217,2511.2,2511.0,0.1245881]
[1730443571972,9.46257831,2511.4,2510.9,0.1993407]
[1730443572305,9.46252831,2511.4,2511.0,0.12458801]
[1730443572492,5.48057831,2511.4,2511.1,0.12458801]
[1730443572701,3.98202,2511.3,2510.8,5.26024]
[1730443572902,3.98193,2511.4,2511.0,0.7969]
[1730443573097,3.98193,2511.4,2511.1,0.12458621]
[1730443573301,3.98193,2511.4,2511.0,0.7969]
[1730443573505,3.98193,2511.4,2511.1,0.12458449]
[1730443573699,3.98193,2511.4,2511.0,0.7969]
[1730443573903,3.98193,2511.4,2511.1,0.12458425]
[1730443574114,6.29610831,2511.6,2511.0,0.7969]
[1730443574321,3.98156,2511.6,2511.2,0.798]
[1730443574640,7.96322,2511.6,2511.2,0.798]
[1730443574921,3.98156,2511.6,2511.3,0.12457351]
[1730443575120,3.98156,2511.6,2511.2,0.798]
[1730443575331,3.98156,2511.6,2511.3,0.12456818]
[1730443575623,3.98156,2511.6,2511.2,0.798]
[1730443575823,3.98156,2511.6,2511.3,0.12457312]
[1730443576022,3.98156,2511.6,2511.2,0.798]
[1730443576220,3.98156,2511.6,2511.3,0.12457348]
[1730443576401,3.98156,2511.6,2511.2,0.798]
[1730443576600,3.98156,2511.6,2511.3,0.12457354]
[1730443576797,7.96322,2511.6,2511.2,0.798]
[1730443577024,3.98168,2511.5,2511.3,0.12457268]
[1730443577228,3.98168,2511.5,2511.2,0.798]
[1730443577537,3.98156,2511.6,2511.3,0.12457259]
[1730443577690,3.98156,2511.6,2511.2,1.34342262]
[1730443577892,3.98156,2511.6,2511.3,0.12457239]
[1730443578130,3.98156,2511.6,2511.2,1.34342262]
[1730443578347,3.98156,2511.6,2511.3,0.12456443]
[1730443578556,0.826,2512.1,2511.4,0.8133]
[1730443578850,3.98104,2512.0,2511.6,0.8133]
[1730443578997,3.98098,2512.0,2511.6,0.8133]
[1730443581126,3.98081,2512.1,2511.7,0.7847]
[1730443581315,3.98091,2512.0,2511.7,0.7847]
[1730443581647,5.60127881,2512.2,2511.8,0.12453934]
[1730443581931,5.60127881,2512.2,2511.9,0.7536]
[1730443582905,8.0833505,2512.2,2511.9,0.7536]
[1730443583233,3.98074,2512.1,2511.9,0.7536]
[1730443583692,4.1026305,2512.2,2512.0,0.55]
[1730443583693,0.1219505,2512.2,2512.0,0.55]
[1730443583893,0.1219505,2512.2,2512.1,1.263193]
[1730443584114,0.1219505,2512.2,2512.1,0.8101]
[1730443586734,4.1025205,2512.2,2511.6,1.02753483]
[1730443586930,4.1025205,2512.2,2511.7,1.47003907]
[1730443586931,3.98087,2512.1,2511.7,1.47003907]
[1730443587110,4.1025205,2512.2,2511.7,1.3455]
[1730443587292,4.1025205,2512.2,2511.8,0.63545548]
[1730443587699,8.0832405,2512.2,2511.8,0.63545548]
[1730443588334,3.98091,2512.0,2511.8,0.63545548]
[1730443588550,9.58196881,2512.2,2511.7,1.47003937]
[1730443588846,3.98074,2512.1,2511.7,1.47003937]
[1730443589734,3.98074,2512.1,2511.7,1.47004078]
[1730443590232,3.98074,2512.1,2511.7,1.3455]
[1730443590440,0.1219505,2512.2,2511.8,0.07961494]
[1730443590615,3.98075,2512.1,2511.9,0.7696]
[1730443594742,0.1219505,2512.2,2512.0,4.53087]
[1730443595040,0.1219505,2512.2,2512.1,6.9439973]
[1730443595537,0.1219505,2512.2,2512.1,7.02359731]
[1730443596945,0.1219505,2512.2,2512.1,7.02358707]
[1730443597840,0.1219505,2512.2,2512.1,8.14893453]
[1730443598043,0.1219505,2512.2,2512.1,8.06933452]
[1730443599331,0.1219505,2512.2,2512.1,8.06933713]
[1730443600704,0.1219505,2512.2,2512.1,8.06933861]
[1730443601114,0.1219505,2512.2,2512.1,6.5706903]
[1730443601313,0.1219505,2512.2,2512.1,2.5899603]
[1730443601721,0.1219505,2512.2,2512.1,6.5706903]
[1730443602313,0.1219505,2512.2,2512.1,6.44617746]
[1730443602856,0.1219505,2512.2,2512.1,7.94482577]
[1730443603805,0.1219505,2512.2,2512.1,3.96409577]
[1730443604135,0.1219505,2512.2,2512.1,7.94482577]
[1730443604918,0.1219505,2512.2,2512.1,7.95482577]
[1730443605114,0.1219505,2512.2,2512.1,6.45617746]
[1730443605321,0.1219505,2512.2,2512.1,6.57068756]
[1730443606126,0.1219505,2512.2,2512.1,6.44617746]
[1730443607030,0.1219505,2512.2,2512.1,6.57069105]
[1730443608448,0.1219505,2512.2,2512.1,6.57068803]
[1730443609966,0.1219505,2512.2,2512.1,2.58995803]
[1730443610171,4.75961,2513.4,2512.8,0.01]
[1730443610334,3.97891,2513.3,2512.9,0.90549011]
[1730443610540,3.97891,2513.3,2512.9,0.781]
[1730443610880,3.97891,2513.3,2513.0,0.12447893]
[1730443611082,4.75961,2513.4,2512.9,0.781]
[1730443611283,4.75961,2513.4,2513.0,0.12448041]
[1730443611582,3.97883,2513.3,2512.9,1.656027]
[1730443611739,3.97883,2513.3,2513.0,0.12447942]
[1730443612056,3.97883,2513.3,2512.9,1.656027]
[1730443612249,3.97883,2513.3,2513.0,0.12447898]
[1730443612449,4.75961,2513.4,2512.9,1.656027]
[1730443612646,4.75961,2513.4,2513.0,0.12447884]
[1730443612851,8.73838,2513.4,2512.9,1.656027]
[1730443613042,4.75961,2513.4,2513.0,0.12447864]
[1730443613242,4.75961,2513.4,2513.1,0.12447855]
[1730443613466,4.75961,2513.4,2512.9,1.656027]
[1730443613673,4.75961,2513.4,2513.0,0.1244787]
[1730443613991,4.75961,2513.4,2513.1,0.1244787]
[1730443614157,4.75961,2513.4,2512.9,1.656027]
[1730443614343,4.75961,2513.4,2513.0,0.12447873]
[1730443614683,3.97844,2513.6,2513.0,0.12447873]
[1730443614684,0.7902,2513.8,2513.3,1.49864831]
[1730443614976,0.7902,2513.8,2513.4,3.97858]
[1730443615277,0.7902,2513.8,2513.5,4.10297112]
[1730443615572,0.7902,2513.8,2513.5,3.97851]
[1730443616071,0.7902,2513.8,2513.3,10.27261831]
[1730443616263,0.7902,2513.8,2513.4,0.12446008]
[1730443616462,0.7902,2513.8,2513.5,0.12446008]
[1730443616698,0.7902,2513.8,2513.4,3.97858]
[1730443616887,0.7902,2513.8,2513.5,0.12446027]
[1730443617082,0.7902,2513.8,2513.4,3.97858]
[1730443617283,4.74151,2514.1,2513.5,0.12446027]
[1730443617492,8.71916,2514.1,2513.6,4.10268027]
[1730443617716,8.71916,2514.1,2513.7,0.12446027]
[1730443617717,4.74151,2514.1,2513.7,0.12446027]
[1730443617895,8.7192,2514.1,2513.4,4.855966]
[1730443618096,4.74151,2514.1,2513.5,1.02535046]
[1730443618399,3.97774,2514.0,2513.6,0.12445085]
[1730443618601,4.74151,2514.1,2513.7,0.12445085]
[1730443618913,3.97781,2514.0,2513.5,0.90089961]
[1730443619215,3.97813,2513.8,2513.6,0.12445279]
[1730443619418,0.7521,2513.7,2513.3,4.79534]
[1730443619716,0.7521,2513.7,2513.4,0.12446071]
[1730443619917,0.7521,2513.7,2513.3,5.6986495]
[1730443619918,0.7521,2513.7,2513.5,0.12446071]
[1730443620082,0.7521,2513.7,2513.6,0.12446071]
[1730443621587,0.7521,2513.7,2513.6,0.12446045]
[1730443622315,8.53974307,2513.7,2513.6,0.12446045]
[1730443622532,3.97876,2513.4,2513.2,0.12447555]
[1730443622857,3.97876,2513.4,2513.3,0.12447555]
[1730443623297,3.97936,2513.0,2512.4,4.75854]
[1730443623492,4.76876,2513.0,2512.5,0.12449558]
[1730443623716,3.97963,2512.8,2512.6,0.12449558]
[1730443623919,3.97963,2512.8,2512.7,0.12449558]
[1730443624496,3.97963,2512.8,2512.0,3.9808]
[1730443624497,3.98011,2512.5,2512.0,4.7592]
[1730443624830,3.97889,2513.3,2512.6,4.7688]
[1730443625121,3.97931,2513.0,2512.7,0.12449615]
[1730443625324,3.97931,2513.0,2512.8,0.12449615]
[1730443625537,3.97931,2513.0,2512.9,0.12449615]
[1730443626403,3.97931,2513.0,2512.5,3.98007]
[1730443626611,3.97931,2513.0,2512.6,0.12450012]
[1730443626805,3.97958,2512.9,2512.7,0.12450012]
[1730443627003,3.97958,2512.9,2512.4,4.73962]
[1730443627004,3.97958,2512.9,2512.8,0.12450012]
[1730443627223,3.97931,2513.0,2512.4,4.73962]
[1730443627398,3.97931,2513.0,2512.5,0.5984661]
[1730443627599,3.97931,2513.0,2512.6,0.1245041]
[1730443627807,3.97931,2513.0,2512.7,0.1245041]
[1730443628019,3.97931,2513.0,2512.8,0.1245041]
[1730443628188,3.97931,2513.0,2512.5,4.454052]
[1730443628388,3.97931,2513.0,2512.6,0.12450115]
[1730443628625,3.97931,2513.0,2512.7,0.12450115]
[1730443628828,3.97931,2513.0,2512.5,0.473962]
[1730443629027,3.97931,2513.0,2512.6,0.12450223]
[1730443629339,0.792,2513.1,2512.7,0.12450223]
[1730443629505,0.792,2513.1,2512.5,4.454042]
[1730443629707,0.792,2513.1,2512.6,0.65381549]
[1730443630033,3.97932,2513.0,2512.6,0.5293139]
[1730443630231,3.97932,2513.0,2512.5,0.473962]
[1730443630422,3.97932,2513.0,2512.6,0.12450507]
[1730443630597,3.97932,2513.0,2512.5,0.473962]
[1730443630796,7.95871,2513.0,2512.6,0.12450516]
[1730443630997,7.95871,2513.0,2512.5,0.473962]
[1730443631196,3.9796,2512.9,2512.6,0.12450412]
[1730443631551,3.9796,2512.9,2512.4,0.83909701]
[1730443631718,3.97932,2513.0,2512.5,0.12450583]
[1730443632047,0.7809,2512.7,2512.2,0.55]
[1730443632192,0.7809,2512.7,2512.1,4.7501]
[1730443632193,3.97998,2512.6,2512.3,0.1245114]
[1730443632392,3.97998,2512.6,2512.4,0.1245114]
[1730443632596,3.97998,2512.6,2512.2,0.12451451]
[1730443632798,3.97998,2512.6,2512.3,0.12451451]
[1730443633023,3.97998,2512.6,2512.2,0.52556444]
[1730443633237,3.97998,2512.6,2512.3,0.1245144]
[1730443633440,3.97998,2512.6,2512.2,0.52556444]
[1730443633646,0.7809,2512.7,2512.3,0.12451434]
[1730443633825,0.7809,2512.7,2512.2,4.50612444]
[1730443633826,3.97996,2512.6,2512.4,0.12451434]
[1730443634159,3.97996,2512.6,2512.2,0.52556444]
[1730443634300,3.97996,2512.6,2512.3,0.12451161]
[1730443634301,3.97994,2512.6,2512.3,0.12451161]
[1730443634502,3.97994,2512.6,2512.2,0.52556444]
[1730443634831,3.97994,2512.6,2512.3,0.12451154]
[1730443635039,3.97994,2512.6,2512.2,0.52556444]
[1730443635348,3.97994,2512.6,2512.3,0.12451251]
[1730443635500,3.97994,2512.6,2512.1,4.74005]
[1730443635699,7.96,2512.6,2512.2,0.12451552]
[1730443635937,3.97994,2512.6,2512.1,4.74005]
[1730443636100,3.97994,2512.6,2512.2,0.12451703]
[1730443636299,3.97994,2512.6,2512.1,4.74005]
[1730443636503,3.97994,2512.6,2512.2,0.12451643]
[1730443636703,3.97994,2512.6,2512.1,4.74005]
[1730443636915,3.97994,2512.6,2512.2,0.12451637]
[1730443637119,3.97994,2512.6,2512.3,0.12451632]
[1730443637341,3.97994,2512.6,2512.1,4.74005]
[1730443637515,3.97994,2512.6,2512.2,0.12451653]
[1730443637715,3.97994,2512.6,2512.3,0.12451644]
[1730443637914,3.97994,2512.6,2512.1,5.3660153]
[1730443638146,3.9801,2512.5,2512.2,0.12451647]
[1730443638453,3.97994,2512.6,2512.3,0.12451647]
[1730443638656,3.97994,2512.6,2512.1,1.3853653]
[1730443638944,3.97994,2512.6,2512.2,0.12451665]
[1730443639144,3.98019,2512.5,2512.3,0.12451665]
[1730443639453,3.98019,2512.5,2512.1,0.7594]
[1730443639607,3.98019,2512.5,2512.2,0.12452328]
[1730443639948,3.98019,2512.5,2512.1,0.7594]
[1730443640137,3.98019,2512.5,2512.2,0.12451933]
[1730443640321,3.98019,2512.5,2512.3,0.12451933]
[1730443640521,3.97994,2512.6,2512.1,0.7594]
[1730443640723,7.95997,2512.6,2512.2,0.32374745]
[1730443641049,7.95997,2512.6,2512.3,0.12451825]
[1730443641252,3.97994,2512.6,2512.1,0.7594]
[1730443641456,3.98018,2512.5,2512.2,0.12451812]
[1730443641611,3.98018,2512.5,2512.1,0.7594]
[1730443641612,3.98018,2512.5,2512.3,0.12451812]
[1730443641815,3.98018,2512.5,2512.1,0.7594]
[1730443642056,3.98018,2512.5,2512.2,0.12451839]
[1730443642213,3.98018,2512.5,2512.3,0.12451839]
[1730443642413,3.98018,2512.5,2512.1,0.95862943]
[1730443642613,3.98018,2512.5,2512.1,0.7594]
[1730443642825,3.98018,2512.5,2512.2,0.12451843]
[1730443643033,3.98018,2512.5,2512.1,0.7594]
[1730443643268,3.98018,2512.5,2511.9,3.9809]
[1730443643269,0.8124,2512.4,2512.3,0.1245184]
[1730443643559,3.97994,2512.6,2512.3,0.1245184]
[1730443643758,3.97994,2512.6,2512.4,0.1245184]
[1730443643912,3.97994,2512.6,2512.1,0.872115]
[1730443644112,3.97994,2512.6,2512.2,0.12451397]
[1730443644312,3.98009,2512.5,2512.3,0.12451397]
[1730443644616,3.98009,2512.5,2512.4,0.12451751]
[1730443644821,3.98009,2512.5,2512.0,4.06033937]
[1730443645036,3.98009,2512.5,2512.1,0.60932206]
[1730443645240,3.97994,2512.6,2512.2,0.12451812]
[1730443645435,3.97994,2512.6,2512.3,0.12451812]
[1730443645746,3.97994,2512.6,2512.4,0.12451812]
[1730443645925,3.97994,2512.6,2512.1,4.46550394]
[1730443646116,3.98012,2512.5,2512.2,0.96913775]
[1730443646313,3.98012,2512.5,2512.3,0.12451418]
[1730443646519,3.98012,2512.5,2512.4,0.1245169]
[1730443647362,3.98012,2512.5,2512.4,0.12451719]
[1730443647729,3.97994,2512.6,2512.4,0.12451719]
[1730443647954,3.97994,2512.6,2512.1,3.98062]
[1730443648160,3.97994,2512.6,2512.2,0.92065188]